[Event "CZE-ch U16 Girls 2023"]
[Site "Teplice"]
[Date "2023.03.11"]
[Round "1.9"]
[White "Dobsa, Emma"]
[Black "Macova, Marketa"]
[Result "1-0"]
[ECO "C42"]
[WhiteElo "1449"]
[BlackElo "1195"]
[Annotator "NA RC COMBH"]
[PlyCount "105"]
[EventDate "2023.03.09"]
[EventType "swiss"]
[EventCountry "CZE"]
[SourceTitle "playchess.com"]
[Source "ChessBase"]
[SourceQuality "1"]
[TimeControl "40/5400+30:1800+30"]

1. e4 {[%emt 0:00:06]} e5 {[%emt 0:00:24]} 2. Nf3 {[%emt 0:00:07]} Nf6 {[%emt 0:00:10]} 3. Nxe5 {[%emt 0:00:14]} d6 {[%emt 0:00:08]} 4. Nf3 {[%emt 0:00:05]} Nxe4 {[%emt 0:00:07]} 5. Nc3 {[%emt 0:00:05]} Nf6 {[%emt 0:00:27]} 6. d4 {[%emt 0:00:07]} d5 {[%emt 0:00:30]} 7. Bd3 {[%emt 0:01:36]} Bb4 {[%emt 0:00:30]} 8. O-O {[%emt 0:02:34]} O-O {[%emt 0:00:52]} 9. Bg5 {[%emt 0:04:33]} c6 {[%emt 0:03:55]} 10. Ne2 {[%emt 0:07:09]} Bg4 {[%emt 0:02:33]} 11. Ng3 {[%emt 0:05:07]} Qd6 {[%emt 0:05:06]} 12. h3 {[%emt 0:03:07]} Bxf3 {[%emt 0:02:15]} 13. Qxf3 {[%emt 0:00:49]} Nbd7 {[%emt 0:04:05]} 14. c3 {[%emt 0:08:48]} Ba5 {[%emt 0:01:24]} 15. Rfe1 {[%emt 0:02:45]} Bc7 {[%emt 0:04:43]} 16. Kf1 {[%emt 0:17:19]} Rfe8 {[%emt 0:09:44]} 17. Nf5 {[%emt 0:08:03]} Qh2 {[%emt 0:04:34]} 18. Ng3 {[%emt 0:01:17]} h5 {[%emt 0:11:43]} 19. Rxe8+ {[%emt 0:15:51]} Rxe8 {[%emt 0:01:04]} 20. Re1 {[%emt 0:01:39]} Rxe1+ {[%emt 0:19:03]} 21. Kxe1 {[%emt 0:00:02]} Bxg3 {[%emt 0:01:45]} 22. fxg3 {[%emt 0:00:16]} Qg1+ {[%emt 0:01:57]} 23. Qf1 {[%emt 0:05:21]} Qxf1+ {[%emt 0:02:06]} 24. Kxf1 {[%emt 0:00:05]} Kf8 {[%emt 0:03:12]} 25. Kf2 {[%emt 0:03:14]} Ne4+ {[%emt 0:01:32]} 26. Bxe4 {[%emt 0:00:35]} dxe4 {[%emt 0:00:10]} 27. Ke3 {[%emt 0:00:42]} f5 {[%emt 0:00:15]} 28. g4 {[%emt 0:01:32]} hxg4 {[%emt 0:00:52]} 29. hxg4 {[%emt 0:00:42]} g6 {[%emt 0:01:39]} 30. gxf5 {[%emt 0:00:05]} gxf5 {[%emt 0:01:15]} 31. Kf4 {[%emt 0:00:06]} e3 {[%emt 0:02:31]} 32. Kxf5 {[%emt 0:00:52]} e2 {[%emt 0:00:30]} 33. Bh4 {[%emt 0:00:11]} Kf7 {[%emt 0:01:42]} 34. Kf4 {[%emt 0:00:44]} Ke6 {[%emt 0:00:40]} 35. Ke3 {[%emt 0:00:21]} Kf5 {[%emt 0:00:30]} 36. Kxe2 {[%emt 0:00:34]} Ke4 {[%emt 0:00:20]} 37. Be7 {[%emt 0:01:00]} Nb6 {[%emt 0:00:59]} 38. Bc5 {[%emt 0:01:44]} Nc4 {[%emt 0:00:59]} 39. b3 {[%emt 0:01:38]} Ne3 {[%emt 0:00:15]} 40. g3 {[%emt 0:01:13]} a6 {[%emt 0:00:38]} 41. c4 {[%emt 0:30:38]} Nf5 {[%emt 0:31:09]} 42. g4 {[%emt 0:05:02]} Ng3+ {[%emt 0:00:27]} 43. Kf2 {[%emt 0:00:09]} Kf4 {[%emt 0:00:27]} 44. Bd6+ {[%emt 0:00:11]} Kxg4 {[%emt 0:00:20]} 45. Bxg3 {[%emt 0:00:12]} Kf5 {[%emt 0:00:10]} 46. d5 {[%emt 0:00:28]} cxd5 {[%emt 0:00:13]} 47. cxd5 {[%emt 0:00:06]} Kf6 {[%emt 0:00:10]} 48. Ke3 {[%emt 0:00:11]} Ke7 {[%emt 0:00:10]} 49. Kd4 {[%emt 0:00:07]} Kd7 {[%emt 0:00:06]} 50. Kc5 {[%emt 0:00:07]} Kd8 {[%emt 0:00:21]} 51. d6 {[%emt 0:00:27]} Kd7 {[%emt 0:00:22]} 52. Kb6 {[%emt 0:00:22]} Kc8 {[%emt 0:00:19]} 53. b4 {[%emt 0:00:30]} 1-0

[Event "CZE-ch U16 Girls 2023"]
[Site "Teplice"]
[Date "2023.03.11"]
[Round "1.10"]
[White "Souralova, Jana"]
[Black "Barteckova, Denisa"]
[Result "1/2-1/2"]
[ECO "C10"]
[WhiteElo "1187"]
[BlackElo "1417"]
[Annotator "NA RC COMBH"]
[PlyCount "67"]
[EventDate "2023.03.09"]
[EventType "swiss"]
[EventCountry "CZE"]
[SourceTitle "playchess.com"]
[Source "ChessBase"]
[SourceQuality "1"]
[TimeControl "40/5400+30:1800+30"]

1. e4 {[%emt 0:00:02]} e6 {[%emt 0:00:11]} 2. d4 {[%emt 0:00:10]} d5 {[%emt 0:00:04]} 3. Nc3 {[%emt 0:00:06]} c6 {[%emt 0:01:00]} 4. Nf3 {[%emt 0:04:13]} Nd7 {[%emt 0:00:54]} 5. Bd3 {[%emt 0:05:32]} h6 {[%emt 0:06:43]} 6. Bf4 {[%emt 0:03:53]} Ngf6 {[%emt 0:05:36]} 7. O-O {[%emt 0:04:47]} dxe4 {[%emt 0:05:18]} 8. Nxe4 {[%emt 0:05:52]} Nxe4 {[%emt 0:00:11]} 9. Bxe4 {[%emt 0:00:08]} Nf6 {[%emt 0:00:04]} 10. Re1 {[%emt 0:03:23]} Bd6 {[%emt 0:16:08]} 11. Bxd6 {[%emt 0:07:46]} Qxd6 {[%emt 0:05:05]} 12. Ne5 {[%emt 0:00:52]} c5 {[%emt 0:04:49]} 13. Nf3 {[%emt 0:08:53]} O-O {[%emt 0:01:06]} 14. dxc5 {[%emt 0:01:46]} Qxc5 {[%emt 0:00:19]} 15. Qd4 {[%emt 0:02:41]} Qxd4 {[%emt 0:02:36]} 16. Nxd4 {[%emt 0:00:11]} Rd8 {[%emt 0:00:55]} 17. Nb5 {[%emt 0:01:41]} Rd7 {[%emt 0:01:00]} 18. Bf3 {[%emt 0:02:07]} a6 {[%emt 0:01:38]} 19. Nc3 {[%emt 0:00:08]} Rc7 {[%emt 0:00:46]} 20. Rad1 {[%emt 0:01:20]} Bd7 {[%emt 0:00:23]} 21. Rd2 {[%emt 0:02:55]} Kf8 {[%emt 0:00:35]} 22. Red1 {[%emt 0:00:56]} Ke7 {[%emt 0:00:46]} 23. Rd4 {[%emt 0:07:19]} Bc6 {[%emt 0:02:14]} 24. Bxc6 {[%emt 0:02:17]} Rxc6 {[%emt 0:00:54]} 25. f3 {[%emt 0:01:37]} Rac8 {[%emt 0:01:37]} 26. R1d2 {[%emt 0:01:38]} R8c7 {[%emt 0:01:19]} 27. Kf1 {[%emt 0:01:16]} b5 {[%emt 0:00:57]} 28. Ke1 {[%emt 0:02:44]} Rd7 {[%emt 0:04:23]} 29. Kd1 {[%emt 0:04:14]} Rcd6 {[%emt 0:00:53]} 30. Rxd6 {[%emt 0:00:47]} Rxd6 {[%emt 0:00:08]} 31. Rxd6 {[%emt 0:00:03]} Kxd6 {[%emt 0:00:05]} 32. Kd2 {[%emt 0:00:07]} Kc5 {[%emt 0:01:00]} 33. Kd3 {[%emt 0:00:55]} Nd7 {[%emt 0:05:20]} 34. Ke4 1/2-1/2

[Event "CZE-ch U16 Girls 2023"]
[Site "Teplice"]
[Date "2023.03.11"]
[Round "1.11"]
[White "Reznickova, Sibyla"]
[Black "Andilova, Klara"]
[Result "1/2-1/2"]
[ECO "E61"]
[WhiteElo "1386"]
[BlackElo "1104"]
[Annotator "NA RC COMBH"]
[PlyCount "62"]
[EventDate "2023.03.09"]
[EventType "swiss"]
[EventCountry "CZE"]
[SourceTitle "playchess.com"]
[Source "ChessBase"]
[SourceQuality "1"]
[TimeControl "40/5400+30:1800+30"]

1. d4 {[%emt 0:00:03]} Nf6 {[%emt 0:00:12]} 2. c4 {[%emt 0:00:16]} g6 {[%emt 0:00:10]} 3. Nc3 {[%emt 0:00:09]} Bg7 {[%emt 0:00:11]} 4. Bf4 {[%emt 0:00:51]} O-O {[%emt 0:00:34]} 5. Nf3 {[%emt 0:00:11]} d6 {[%emt 0:00:18]} 6. e4 {[%emt 0:04:41]} Nbd7 {[%emt 0:06:26]} 7. Bd3 {[%emt 0:03:12]} Ne8 {[%emt 0:02:48]} 8. d5 {[%emt 0:14:21]} c5 {[%emt 0:10:46]} 9. O-O {[%emt 0:01:30]} a6 {[%emt 0:06:26]} 10. Re1 {[%emt 0:02:16]} e5 {[%emt 0:02:46]} 11. Bg5 {[%emt 0:09:43]} Nef6 {[%emt 0:05:41]} 12. Qd2 {[%emt 0:02:09]} Bh8 {[%emt 0:08:16]} 13. h4 {[%emt 0:07:53]} Qc7 {[%emt 0:07:38]} 14. Bh6 {[%emt 0:02:28]} Re8 {[%emt 0:01:02]} 15. Qg5 {[%emt 0:04:07]} Nb6 {[%emt 0:03:42]} 16. Nh2 {[%emt 0:10:03]} Nh5 {[%emt 0:03:05]} 17. Qe3 {[%emt 0:05:46]} Bf6 {[%emt 0:05:49]} 18. Be2 {[%emt 0:04:10]} Ng7 {[%emt 0:02:00]} 19. Qg3 {[%emt 0:01:37]} Qd8 {[%emt 0:06:00]} 20. Nf3 {[%emt 0:04:12]} Be7 {[%emt 0:00:53]} 21. Ng5 {[%emt 0:04:45]} Nd7 {[%emt 0:01:27]} 22. h5 {[%emt 0:01:53]} Nf6 {[%emt 0:01:11]} 23. hxg6 {[%emt 0:01:03]} fxg6 {[%emt 0:00:25]} 24. Bxg7 {[%emt 0:03:19]} Kxg7 {[%emt 0:00:28]} 25. f4 {[%emt 0:02:03]} exf4 {[%emt 0:02:55]} 26. Qxf4 {[%emt 0:00:23]} Rf8 {[%emt 0:00:52]} 27. Qh2 {[%emt 0:02:56]} Nh5 {[%emt 0:03:59]} 28. Ne6+ {[%emt 0:00:46]} Bxe6 {[%emt 0:00:16]} 29. dxe6 {[%emt 0:00:06]} Nf4 {[%emt 0:00:39]} 30. Bg4 {[%emt 0:00:50]} Bf6 {[%emt 0:02:31]} 31. Rf1 {[%emt 0:01:28]} Be5 {[%emt 0:00:36]} 1/2-1/2

[Event "CZE-ch U16 Girls 2023"]
[Site "Teplice"]
[Date "2023.03.11"]
[Round "1.12"]
[White "Foldynova, Julie"]
[Black "Kavanova, Anezka"]
[Result "0-1"]
[ECO "B23"]
[WhiteElo "1100"]
[BlackElo "1384"]
[Annotator "NA RC COMBH"]
[PlyCount "56"]
[EventDate "2023.03.09"]
[EventType "swiss"]
[EventCountry "CZE"]
[SourceTitle "playchess.com"]
[Source "ChessBase"]
[SourceQuality "1"]
[TimeControl "40/5400+30:1800+30"]

1. e4 {[%emt 0:00:03]} c5 {[%emt 0:00:06]} 2. Nc3 {[%emt 0:00:37]} e6 {[%emt 0:00:17]} 3. Nf3 {[%emt 0:00:24]} Nc6 {[%emt 0:00:18]} 4. Be2 {[%emt 0:00:48]} d5 {[%emt 0:00:27]} 5. exd5 {[%emt 0:00:33]} exd5 {[%emt 0:00:10]} 6. d4 {[%emt 0:00:50]} c4 {[%emt 0:03:11]} 7. O-O {[%emt 0:01:17]} Nf6 {[%emt 0:00:41]} 8. Re1 {[%emt 0:01:26]} Be7 {[%emt 0:01:28]} 9. Bf4 {[%emt 0:02:39]} O-O {[%emt 0:06:18]} 10. a3 {[%emt 0:04:26]} a6 {[%emt 0:02:06]} 11. b3 {[%emt 0:05:30]} b5 {[%emt 0:01:57]} 12. b4 {[%emt 0:03:09]} Bb7 {[%emt 0:05:52]} 13. Qd2 {[%emt 0:04:02]} Qb6 {[%emt 0:26:43]} 14. Be5 {[%emt 0:15:11]} Nxe5 {[%emt 0:06:10]} 15. Nxe5 {[%emt 0:03:07]} Rad8 {[%emt 0:02:58]} 16. Rad1 {[%emt 0:04:08]} Nd7 {[%emt 0:05:29]} 17. Ng4 {[%emt 0:04:22]} Nf6 {[%emt 0:12:14]} 18. Bf3 {[%emt 0:06:15]} Rfe8 {[%emt 0:04:12]} 19. Qg5 {[%emt 0:10:31]} Ne4 {[%emt 0:07:09]} 20. Qe3 {[%emt 0:05:17]} Bg5 {[%emt 0:03:32]} 21. Qe2 {[%emt 0:00:16]} f5 {[%emt 0:00:53]} 22. Bxe4 {[%emt 0:02:18]} dxe4 {[%emt 0:03:29]} 23. Ne3 {[%emt 0:03:01]} f4 {[%emt 0:01:32]} 24. Nf1 {[%emt 0:03:22]} Rxd4 {[%emt 0:01:17]} 25. Nd2 {[%emt 0:02:34]} e3 {[%emt 0:00:56]} 26. Nf3 {[%emt 0:03:02]} exf2+ {[%emt 0:00:11]} 27. Qxf2 {[%emt 0:00:15]} Rxe1+ {[%emt 0:01:38]} 28. Qxe1 {[%emt 0:01:02]} Rxd1+ 0-1

[Event "CZE-ch U16 Girls 2023"]
[Site "Teplice"]
[Date "2023.03.12"]
[Round "2.1"]
[White "Vavrinkova, Marie"]
[Black "Zelbova, Lada"]
[Result "0-1"]
[ECO "D31"]
[WhiteElo "1457"]
[BlackElo "1822"]
[Annotator "NA RC COMBH"]
[PlyCount "88"]
[EventDate "2023.03.09"]
[EventType "swiss"]
[EventCountry "CZE"]
[SourceTitle "playchess.com"]
[Source "ChessBase"]
[SourceQuality "1"]
[TimeControl "40/5400+30:1800+30"]

1. d4 {[%emt 0:00:01]} d5 {[%emt 0:00:09]} 2. Nf3 {[%emt 0:00:16]} e6 {[%emt 0:00:25]} 3. c4 {[%emt 0:01:00]} c6 {[%emt 0:00:22]} 4. Nc3 {[%emt 0:01:17]} dxc4 {[%emt 0:00:51]} 5. e4 {[%emt 0:04:59]} b5 {[%emt 0:00:37]} 6. a4 {[%emt 0:03:59]} Bb4 {[%emt 0:00:34]} 7. axb5 {[%emt 0:02:50]} cxb5 {[%emt 0:00:25]} 8. Bd2 {[%emt 0:04:25]} Bxc3 {[%emt 0:00:26]} 9. Bxc3 {[%emt 0:01:00]} a5 {[%emt 0:00:16]} 10. Be2 {[%emt 0:03:21]} Nf6 {[%emt 0:03:56]} 11. Nd2 {[%emt 0:04:37]} Bb7 {[%emt 0:01:19]} 12. Nf3 {[%emt 0:06:23]} Nxe4 {[%emt 0:04:17]} 13. O-O {[%emt 0:03:07]} O-O {[%emt 0:02:14]} 14. Qc2 {[%emt 0:03:47]} Nd7 {[%emt 0:04:08]} 15. Rfd1 {[%emt 0:03:11]} Ndf6 {[%emt 0:03:58]} 16. Be1 {[%emt 0:04:44]} Nd6 {[%emt 0:08:14]} 17. Ne5 {[%emt 0:11:27]} Be4 {[%emt 0:07:29]} 18. Qd2 {[%emt 0:03:11]} a4 {[%emt 0:02:45]} 19. f3 {[%emt 0:03:37]} Bb7 {[%emt 0:03:58]} 20. Qb4 {[%emt 0:02:26]} Rc8 {[%emt 0:01:39]} 21. Bh4 {[%emt 0:01:03]} Nd5 {[%emt 0:18:11]} 22. Bxd8 {[%emt 0:02:02]} Nxb4 {[%emt 0:00:17]} 23. Be7 {[%emt 0:00:37]} Rfd8 {[%emt 0:00:32]} 24. Rdc1 {[%emt 0:07:02]} f6 {[%emt 0:04:00]} 25. Bxd8 {[%emt 0:00:34]} Rxd8 {[%emt 0:00:09]} 26. Ng4 {[%emt 0:00:20]} Nd5 {[%emt 0:00:53]} 27. Re1 {[%emt 0:01:12]} Nf5 {[%emt 0:09:35]} 28. Rad1 {[%emt 0:03:25]} Bc6 {[%emt 0:04:40]} 29. Bf1 {[%emt 0:02:45]} Kf7 {[%emt 0:00:36]} 30. Re2 {[%emt 0:02:51]} a3 {[%emt 0:02:35]} 31. Ra1 {[%emt 0:02:19]} Nxd4 {[%emt 0:01:26]} 32. Rf2 {[%emt 0:01:08]} h5 {[%emt 0:01:14]} 33. Rxa3 {[%emt 0:01:31]} hxg4 {[%emt 0:00:16]} 34. fxg4 {[%emt 0:00:47]} e5 {[%emt 0:03:42]} 35. g3 {[%emt 0:02:09]} e4 {[%emt 0:03:07]} 36. Bg2 {[%emt 0:01:35]} Re8 {[%emt 0:01:35]} 37. Rd2 {[%emt 0:01:39]} Nb3 {[%emt 0:02:08]} 38. Re2 {[%emt 0:01:21]} e3 {[%emt 0:01:43]} 39. Ra6 {[%emt 0:03:21]} Nd4 {[%emt 0:02:52]} 40. Rxc6 {[%emt 0:02:31]} Nxe2+ {[%emt 0:00:29]} 41. Kf1 {[%emt 0:30:36]} Nef4 {[%emt 0:31:25]} 42. gxf4 {[%emt 0:00:00]} e2+ {[%emt 0:00:00]} 43. Ke1 {[%emt 0:00:00]} Nxf4 {[%emt 0:00:00]} 44. Rc7+ {[%emt 0:00:00]} Kf8 {[%emt 0:00:00]} 0-1

[Event "CZE-ch U16 Girls 2023"]
[Site "Teplice"]
[Date "2023.03.12"]
[Round "2.2"]
[White "Dobsa, Emma"]
[Black "Havelkova, Beata"]
[Result "0-1"]
[ECO "B40"]
[WhiteElo "1449"]
[BlackElo "1670"]
[Annotator "NA RC COMBH"]
[PlyCount "78"]
[EventDate "2023.03.09"]
[EventType "swiss"]
[EventCountry "CZE"]
[SourceTitle "playchess.com"]
[Source "ChessBase"]
[SourceQuality "1"]
[TimeControl "40/5400+30:1800+30"]

1. e4 {[%emt 0:00:03]} c5 {[%emt 0:00:05]} 2. Nf3 {[%emt 0:00:08]} e6 {[%emt 0:00:06]} 3. c4 {[%emt 0:00:26]} Qc7 {[%emt 0:00:57]} 4. d4 {[%emt 0:00:27]} cxd4 {[%emt 0:00:10]} 5. Qxd4 {[%emt 0:00:05]} Nc6 {[%emt 0:05:27]} 6. Qe3 {[%emt 0:00:47]} Nf6 {[%emt 0:02:01]} 7. Nc3 {[%emt 0:03:46]} a6 {[%emt 0:03:15]} 8. a3 {[%emt 0:14:56]} b6 {[%emt 0:03:41]} 9. Bd3 {[%emt 0:05:38]} Bd6 {[%emt 0:11:22]} 10. h3 {[%emt 0:09:50]} O-O {[%emt 0:00:27]} 11. O-O {[%emt 0:06:27]} Re8 {[%emt 0:07:07]} 12. Re1 {[%emt 0:03:47]} Bc5 {[%emt 0:03:25]} 13. Qg5 {[%emt 0:09:08]} h6 {[%emt 0:20:08]} 14. Qf4 {[%emt 0:02:57]} Qxf4 {[%emt 0:09:33]} 15. Bxf4 {[%emt 0:00:21]} e5 {[%emt 0:05:41]} 16. Bh2 {[%emt 0:02:40]} Rb8 {[%emt 0:02:45]} 17. Rac1 {[%emt 0:04:44]} Bb7 {[%emt 0:04:15]} 18. Nd5 {[%emt 0:06:11]} d6 {[%emt 0:06:13]} 19. b4 {[%emt 0:02:58]} Bd4 {[%emt 0:00:05]} 20. b5 {[%emt 0:01:00]} Na5 {[%emt 0:09:10]} 21. bxa6 {[%emt 0:01:51]} Bxd5 {[%emt 0:00:23]} 22. cxd5 {[%emt 0:00:54]} Bb2 {[%emt 0:00:59]} 23. Rb1 {[%emt 0:02:05]} Bxa3 {[%emt 0:00:08]} 24. Nd2 {[%emt 0:00:36]} Rec8 {[%emt 0:00:24]} 25. Bb5 {[%emt 0:02:40]} Rc2 {[%emt 0:01:21]} 26. Nb3 {[%emt 0:01:33]} Nxb3 {[%emt 0:02:18]} 27. Rxb3 {[%emt 0:00:08]} Bc5 {[%emt 0:00:04]} 28. Bg3 {[%emt 0:02:14]} Ra2 {[%emt 0:00:25]} 29. Rbb1 {[%emt 0:03:27]} Bd4 {[%emt 0:01:53]} 30. Rec1 {[%emt 0:00:44]} Nxe4 {[%emt 0:00:34]} 31. Kh2 {[%emt 0:12:15]} Nd2 {[%emt 0:00:13]} 32. Rb4 {[%emt 0:00:33]} Bc5 {[%emt 0:00:28]} 33. Ra4 {[%emt 0:00:32]} Rxa4 {[%emt 0:00:13]} 34. Bxa4 {[%emt 0:00:04]} b5 {[%emt 0:00:22]} 35. Bc2 {[%emt 0:00:34]} b4 {[%emt 0:01:21]} 36. Rd1 {[%emt 0:00:58]} Nc4 {[%emt 0:00:07]} 37. Bd3 {[%emt 0:00:44]} Nb2 {[%emt 0:00:21]} 38. Rd2 {[%emt 0:00:01]} Nxd3 {[%emt 0:00:08]} 39. Rxd3 {[%emt 0:00:10]} Ra8 {[%emt 0:00:22]} 0-1

[Event "CZE-ch U16 Girls 2023"]
[Site "Teplice"]
[Date "2023.03.12"]
[Round "2.3"]
[White "Kavanova, Anezka"]
[Black "Seda, Michaela"]
[Result "1-0"]
[ECO "C11"]
[WhiteElo "1384"]
[BlackElo "1610"]
[Annotator "NA RC COMBH"]
[PlyCount "97"]
[EventDate "2023.03.09"]
[EventType "swiss"]
[EventCountry "CZE"]
[SourceTitle "playchess.com"]
[Source "ChessBase"]
[SourceQuality "1"]
[TimeControl "40/5400+30:1800+30"]

1. e4 e6 {[%emt 0:00:53]} 2. d4 {[%emt 0:00:08]} d5 {[%emt 0:00:12]} 3. Nc3 {[%emt 0:00:05]} Nf6 {[%emt 0:00:11]} 4. e5 {[%emt 0:00:22]} Nfd7 {[%emt 0:00:05]} 5. Nf3 {[%emt 0:00:06]} c5 {[%emt 0:00:30]} 6. Be3 {[%emt 0:01:56]} Nc6 {[%emt 0:01:12]} 7. Nb5 {[%emt 0:02:05]} a6 {[%emt 0:03:54]} 8. Nd6+ {[%emt 0:06:24]} Bxd6 {[%emt 0:00:25]} 9. exd6 {[%emt 0:00:05]} cxd4 {[%emt 0:00:40]} 10. Nxd4 {[%emt 0:00:17]} Nf6 {[%emt 0:01:08]} 11. Bf4 {[%emt 0:08:06]} Ne4 {[%emt 0:01:30]} 12. Nxc6 {[%emt 0:16:11]} bxc6 {[%emt 0:00:11]} 13. Be5 {[%emt 0:00:06]} f6 {[%emt 0:04:31]} 14. Bd4 {[%emt 0:16:05]} Nxd6 {[%emt 0:00:47]} 15. Qg4 {[%emt 0:01:54]} O-O {[%emt 0:02:42]} 16. Bc5 {[%emt 0:00:27]} Re8 {[%emt 0:01:33]} 17. O-O-O {[%emt 0:04:02]} e5 {[%emt 0:01:07]} 18. Qh5 {[%emt 0:00:36]} Ne4 {[%emt 0:01:50]} 19. Bb6 {[%emt 0:01:47]} Qe7 {[%emt 0:00:39]} 20. Bd3 {[%emt 0:04:47]} g6 {[%emt 0:03:55]} 21. Qh6 {[%emt 0:02:32]} Nd6 {[%emt 0:00:21]} 22. Bc5 {[%emt 0:02:56]} Rd8 {[%emt 0:07:08]} 23. h4 {[%emt 0:02:22]} e4 {[%emt 0:01:09]} 24. Rhe1 {[%emt 0:01:34]} Qc7 {[%emt 0:07:25]} 25. Bxd6 {[%emt 0:18:51]} Rxd6 {[%emt 0:00:22]} 26. f3 {[%emt 0:00:12]} Bf5 {[%emt 0:04:13]} 27. fxe4 {[%emt 0:00:56]} dxe4 {[%emt 0:00:58]} 28. Bxe4 {[%emt 0:02:19]} Rxd1+ {[%emt 0:00:27]} 29. Kxd1 {[%emt 0:00:09]} Qd7+ {[%emt 0:04:39]} 30. Kc1 {[%emt 0:01:14]} Qe6 {[%emt 0:06:21]} 31. Bd5 {[%emt 0:03:39]} Qxd5 {[%emt 0:02:32]} 32. Re7 {[%emt 0:00:18]} Qf7 {[%emt 0:01:08]} 33. Rxf7 {[%emt 0:00:04]} Kxf7 {[%emt 0:00:04]} 34. Qxh7+ {[%emt 0:00:04]} Ke6 {[%emt 0:00:15]} 35. Qb7 {[%emt 0:00:27]} Rd8 {[%emt 0:00:33]} 36. Qxc6+ {[%emt 0:00:28]} Rd6 {[%emt 0:00:11]} 37. Qc4+ {[%emt 0:00:31]} Ke5 {[%emt 0:00:45]} 38. g4 {[%emt 0:01:24]} Be4 {[%emt 0:00:39]} 39. Qc5+ {[%emt 0:01:19]} Ke6 {[%emt 0:01:07]} 40. Qe3 {[%emt 0:00:35]} Ke5 {[%emt 0:01:44]} 41. Qg3+ {[%emt 0:30:15]} Ke6 {[%emt 0:30:36]} 42. h5 {[%emt 0:00:32]} Rc6 {[%emt 0:02:28]} 43. Qb3+ {[%emt 0:00:46]} Ke5 {[%emt 0:00:44]} 44. Qg3+ {[%emt 0:00:36]} Ke6 {[%emt 0:00:42]} 45. c3 {[%emt 0:00:12]} g5 {[%emt 0:00:37]} 46. h6 {[%emt 0:00:41]} Rd6 {[%emt 0:01:01]} 47. Qe3 {[%emt 0:00:21]} Ke5 {[%emt 0:01:01]} 48. h7 {[%emt 0:00:13]} Rd8 {[%emt 0:00:37]} 49. Qd4+ {[%emt 0:00:09]} 1-0

[Event "CZE-ch U16 Girls 2023"]
[Site "Teplice"]
[Date "2023.03.12"]
[Round "2.4"]
[White "Janouskova, Adela"]
[Black "Vacekova, Anita"]
[Result "1/2-1/2"]
[ECO "C44"]
[WhiteElo "1558"]
[BlackElo "1350"]
[Annotator "NA RC COMBH"]
[PlyCount "117"]
[EventDate "2023.03.09"]
[EventType "swiss"]
[EventCountry "CZE"]
[SourceTitle "playchess.com"]
[Source "ChessBase"]
[SourceQuality "1"]
[TimeControl "40/5400+30:1800+30"]

1. e4 {[%emt 0:00:04]} e5 {[%emt 0:00:05]} 2. Nf3 {[%emt 0:00:10]} Nc6 {[%emt 0:00:04]} 3. d4 {[%emt 0:00:24]} exd4 {[%emt 0:00:09]} 4. c3 {[%emt 0:00:50]} d5 {[%emt 0:00:48]} 5. exd5 {[%emt 0:01:00]} Qxd5 {[%emt 0:00:21]} 6. cxd4 {[%emt 0:00:32]} Bg4 {[%emt 0:00:20]} 7. Be2 {[%emt 0:00:23]} Bb4+ {[%emt 0:00:54]} 8. Nc3 {[%emt 0:00:45]} Bxf3 {[%emt 0:00:49]} 9. Bxf3 {[%emt 0:00:07]} Qc4 {[%emt 0:00:32]} 10. Bxc6+ {[%emt 0:00:10]} Qxc6 {[%emt 0:00:49]} 11. O-O {[%emt 0:03:38]} Ne7 {[%emt 0:16:27]} 12. Qb3 {[%emt 0:10:30]} Bxc3 {[%emt 0:12:34]} 13. bxc3 {[%emt 0:00:27]} O-O {[%emt 0:02:26]} 14. Rb1 {[%emt 0:02:31]} Nd5 {[%emt 0:06:55]} 15. c4 {[%emt 0:05:02]} Nb6 {[%emt 0:01:33]} 16. c5 {[%emt 0:01:55]} Nd5 {[%emt 0:01:59]} 17. Qxb7 {[%emt 0:01:51]} Qxb7 {[%emt 0:04:28]} 18. Rxb7 {[%emt 0:01:20]} Rfb8 {[%emt 0:00:27]} 19. Rxb8+ {[%emt 0:01:47]} Rxb8 {[%emt 0:00:08]} 20. h3 {[%emt 0:06:18]} Rb4 {[%emt 0:04:39]} 21. Be3 {[%emt 0:03:19]} Ra4 {[%emt 0:04:28]} 22. Rb1 {[%emt 0:02:46]} f5 {[%emt 0:01:33]} 23. Rb8+ {[%emt 0:04:44]} Kf7 {[%emt 0:00:12]} 24. Rd8 {[%emt 0:00:46]} c6 {[%emt 0:08:43]} 25. Rc8 {[%emt 0:03:26]} f4 {[%emt 0:05:44]} 26. Bd2 {[%emt 0:06:15]} Rxa2 {[%emt 0:03:18]} 27. Be1 {[%emt 0:01:09]} Ne7 {[%emt 0:01:27]} 28. Rc7 {[%emt 0:02:03]} Ra1 {[%emt 0:02:13]} 29. Kf1 {[%emt 0:00:10]} a5 {[%emt 0:00:53]} 30. Ke2 {[%emt 0:01:37]} g5 {[%emt 0:01:29]} 31. Ra7 {[%emt 0:04:51]} a4 {[%emt 0:00:31]} 32. d5 {[%emt 0:11:09]} cxd5 {[%emt 0:03:23]} 33. c6 {[%emt 0:00:39]} Ke6 {[%emt 0:02:18]} 34. c7 {[%emt 0:01:44]} Nc8 {[%emt 0:00:43]} 35. Ra6+ {[%emt 0:05:24]} Kd7 {[%emt 0:00:40]} 36. Rh6 {[%emt 0:01:44]} Kxc7 {[%emt 0:04:14]} 37. Rxh7+ {[%emt 0:00:21]} Kc6 {[%emt 0:00:37]} 38. Rh6+ {[%emt 0:01:52]} Kc5 {[%emt 0:01:01]} 39. Ra6 {[%emt 0:01:04]} a3 {[%emt 0:02:06]} 40. Ra5+ {[%emt 0:00:41]} Kc4 {[%emt 0:02:19]} 41. Ra4+ {[%emt 0:32:43]} Kb3 {[%emt 0:30:50]} 42. Rb4+ {[%emt 0:01:00]} Kc2 {[%emt 0:00:52]} 43. Rb7 {[%emt 0:01:40]} Nd6 {[%emt 0:01:29]} 44. Rd7 {[%emt 0:01:16]} Rxe1+ {[%emt 0:00:00]} 45. Kxe1 {[%emt 0:00:00]} a2 {[%emt 0:00:00]} 46. Ra7 {[%emt 0:00:00]} Kb2 {[%emt 0:00:00]} 47. Kd2 {[%emt 0:00:00]} a1=Q {[%emt 0:00:00]} 48. Rxa1 {[%emt 0:00:00]} Kxa1 {[%emt 0:00:00]} 49. Kc3 {[%emt 0:00:00]} Nf5 {[%emt 0:00:00]} 50. g4 {[%emt 0:00:00]} fxg3 {[%emt 0:00:00]} 51. fxg3 {[%emt 0:00:00]} Nxg3 {[%emt 0:00:00]} 52. Kd4 {[%emt 0:00:00]} Kb2 {[%emt 0:00:00]} 53. Kxd5 {[%emt 0:00:00]} Kc3 {[%emt 0:00:00]} 54. Ke5 {[%emt 0:00:00]} Kd3 {[%emt 0:00:00]} 55. Kf6 {[%emt 0:00:00]} Ne4+ {[%emt 0:00:00]} 56. Kf5 {[%emt 0:00:00]} Kd4 {[%emt 0:00:00]} 57. Kg4 {[%emt 0:00:00]} Ke5 {[%emt 0:00:00]} 58. h4 {[%emt 0:00:00]} gxh4 {[%emt 0:00:00]} 59. Kxh4 {[%emt 0:00:00]} 1/2-1/2